{"text_format":"3","workbook":"xlsx","n_sheets":4,"sheets":["Kontantstrøm","Månedlige inntekter","Månedlige utgifter","DIAGRAMDATA"],"not_rendered":{"charts":1,"defined_names":10},"read":"whole","date_system":"1900"}

{"sheet":"Kontantstrøm","index":0,"n_rows":9,"n_cols":5,"rows_kept":9}
[null,"Navn"]
[null,"Familiebudsjett"]
[null,{"$f":"TEXT(TODAY(),\"mmmm\")","v":"januar"}]
[null,{"$f":"YEAR(TODAY())","v":2017}]
[null,"Merknad: Kontantstrømtabellen beregnes automatisk basert på oppføringene i regnearkene for månedlige inntekter og månedlige utgifter"]
[null,"Kontantstrøm","Forventet","Faktisk","Avvik"]
[null,"Totale inntekter",{"$f":"Inntekter[[#Totals],[Forventet]]","v":{"v":5700,"d":"5,700"}},{"$f":"Inntekter[[#Totals],[Faktisk]]","v":{"v":5500,"d":"5,500"}},{"$f":"Inntekter[[#Totals],[Avvik]]","v":-200}]
[null,"Totale utgifter",{"$f":"Utgift[[#Totals],[Forventet]]","v":{"v":3603,"d":"3,603"}},{"$f":"Utgift[[#Totals],[Faktisk]]","v":{"v":3655,"d":"3,655"}},{"$f":"Utgift[[#Totals],[Avvik]]","v":-52}]
[null,"Total kontantbeholdning",{"$f":"C7-C8","v":{"v":2097,"d":"2,097"}},{"$f":"D7-D8","v":{"v":1845,"d":"1,845"}},{"$f":"SUBTOTAL(109,Kontantstrøm[Avvik])","v":-252}]

{"sheet":"Månedlige inntekter","index":1,"n_rows":9,"n_cols":5,"rows_kept":9}
[null,{"$f":"Navn","v":"Navn"}]
[null,{"$f":"BudgetTitle","v":"Familiebudsjett"}]
[null,{"$f":"Måned","v":"januar"}]
[null,{"$f":"År","v":2017}]
[null,"Månedlige inntekter","Forventet","Faktisk","Avvik"]
[null,"Inntekter 1",{"v":4000,"d":"4,000"},{"v":4000,"d":"4,000"},{"$f":"Inntekter[[#This Row],[Faktisk]]-Inntekter[[#This Row],[Forventet]]","v":0}]
[null,"Inntekter 2",{"v":1400,"d":"1,400"},{"v":1500,"d":"1,500"},{"$f":"Inntekter[[#This Row],[Faktisk]]-Inntekter[[#This Row],[Forventet]]","v":100}]
[null,"Annen inntekt",300,0,{"$f":"Inntekter[[#This Row],[Faktisk]]-Inntekter[[#This Row],[Forventet]]","v":-300}]
[null,"Totale inntekter",{"$f":"SUBTOTAL(109,Inntekter[Forventet])","v":{"v":5700,"d":"5,700"}},{"$f":"SUBTOTAL(109,Inntekter[Faktisk])","v":{"v":5500,"d":"5,500"}},{"$f":"SUBTOTAL(109,Inntekter[Avvik])","v":-200}]

{"sheet":"Månedlige utgifter","index":2,"n_rows":26,"n_cols":5,"rows_kept":26}
[null,{"$f":"Navn","v":"Navn"}]
[null,{"$f":"BudgetTitle","v":"Familiebudsjett"}]
[null,{"$f":"Måned","v":"januar"}]
[null,{"$f":"År","v":2017}]
[null,"Månedlige utgifter","Forventet","Faktisk","Avvik"]
[null,"Bolig",{"v":1500,"d":"1,500"},{"v":1500,"d":"1,500"},{"$f":"Utgift[[#This Row],[Forventet]]-Utgift[[#This Row],[Faktisk]]","v":0}]
[null,"Dagligvarer",250,280,{"$f":"Utgift[[#This Row],[Forventet]]-Utgift[[#This Row],[Faktisk]]","v":-30}]
[null,"Telefon",38,38,{"$f":"Utgift[[#This Row],[Forventet]]-Utgift[[#This Row],[Faktisk]]","v":0}]
[null,"Strøm/gass",65,78,{"$f":"Utgift[[#This Row],[Forventet]]-Utgift[[#This Row],[Faktisk]]","v":-13}]
[null,"Vann/kloakk/renovasjon",25,21,{"$f":"Utgift[[#This Row],[Forventet]]-Utgift[[#This Row],[Faktisk]]","v":4}]
[null,"Kabel-TV",75,83,{"$f":"Utgift[[#This Row],[Forventet]]-Utgift[[#This Row],[Faktisk]]","v":-8}]
[null,"Internett",60,60,{"$f":"Utgift[[#This Row],[Forventet]]-Utgift[[#This Row],[Faktisk]]","v":0}]
[null,"Vedlikehold/reparasjoner",0,60,{"$f":"Utgift[[#This Row],[Forventet]]-Utgift[[#This Row],[Faktisk]]","v":-60}]
[null,"Barnepass",180,150,{"$f":"Utgift[[#This Row],[Forventet]]-Utgift[[#This Row],[Faktisk]]","v":30}]
[null,"Undervisning",250,250,{"$f":"Utgift[[#This Row],[Forventet]]-Utgift[[#This Row],[Faktisk]]","v":0}]
[null,"Kjæledyr",75,80,{"$f":"Utgift[[#This Row],[Forventet]]-Utgift[[#This Row],[Faktisk]]","v":-5}]
[null,"Transport",280,260,{"$f":"Utgift[[#This Row],[Forventet]]-Utgift[[#This Row],[Faktisk]]","v":20}]
[null,"Personlig pleie",75,65,{"$f":"Utgift[[#This Row],[Forventet]]-Utgift[[#This Row],[Faktisk]]","v":10}]
[null,"Forsikring",255,255,{"$f":"Utgift[[#This Row],[Forventet]]-Utgift[[#This Row],[Faktisk]]","v":0}]
[null,"Kredittkort",100,100,{"$f":"Utgift[[#This Row],[Forventet]]-Utgift[[#This Row],[Faktisk]]","v":0}]
[null,"Lån",0,0,{"$f":"Utgift[[#This Row],[Forventet]]-Utgift[[#This Row],[Faktisk]]","v":0}]
[null,"Skatt",0,0,{"$f":"Utgift[[#This Row],[Forventet]]-Utgift[[#This Row],[Faktisk]]","v":0}]
[null,"Gaver/veldedighet",150,150,{"$f":"Utgift[[#This Row],[Forventet]]-Utgift[[#This Row],[Faktisk]]","v":0}]
[null,"Sparing",225,225,{"$f":"Utgift[[#This Row],[Forventet]]-Utgift[[#This Row],[Faktisk]]","v":0}]
[null,"Annet",0,0,{"$f":"Utgift[[#This Row],[Forventet]]-Utgift[[#This Row],[Faktisk]]","v":0}]
[null,"Totale",{"$f":"SUBTOTAL(109,Utgift[Forventet])","v":{"v":3603,"d":"3,603"}},{"$f":"SUBTOTAL(109,Utgift[Faktisk])","v":{"v":3655,"d":"3,655"}},{"$f":"SUBTOTAL(109,Utgift[Avvik])","v":-52}]

{"sheet":"DIAGRAMDATA","index":3,"n_rows":6,"n_cols":4,"rows_kept":6,"hidden":true}
[null,"DIAGRAMDATA"]
[]
[null,null,"Forventet","Faktisk"]
[null,"Kontantstrøm",{"$f":"Kontantstrøm[[#Totals],[Forventet]]","v":2097},{"$f":"Kontantstrøm[[#Totals],[Faktisk]]","v":1845}]
[null,"Månedlige inntekter",{"$f":"Inntekter[[#Totals],[Forventet]]","v":5700},{"$f":"Inntekter[[#Totals],[Faktisk]]","v":5500}]
[null,"Månedlige utgifter",{"$f":"Utgift[[#Totals],[Forventet]]","v":3603},{"$f":"Utgift[[#Totals],[Faktisk]]","v":3655}]